bitfinex/quotes_ETHUSD_20240608
["timestamp","ask_amount","ask_price","bid_price","bid_amount"]
[1717805208918,0.10822417,3682.7,3682.3,1.39285466]
[1717805209484,0.10822417,3682.6,3682.3,1.39285466]
[1717805209761,2.2754,3682.8,3682.3,1.39285466]
[1717805209960,0.10822417,3682.5,3682.4,2.71559]
[1717805210117,0.10822417,3682.5,3682.4,4.10844466]
[1717805210312,0.10820608,3682.5,3682.4,4.10844466]
[1717805210512,0.725,3683.0,3682.4,4.10844466]
[1717805210789,0.10820608,3682.9,3682.5,1.39285466]
[1717805211916,0.725,3683.0,3682.5,1.39285466]
[1717805212417,0.10820608,3682.9,3682.5,1.39285466]
[1717805212813,0.725,3683.0,3682.5,1.39285466]
[1717805213029,0.10820608,3682.9,3682.5,1.39285466]
[1717805221268,3.0106,3682.8,3682.5,1.39285466]
[1717805221438,2.2856,3682.5,3682.0,10.14586]
[1717805221641,0.725,3682.3,3682.1,1.39285466]
[1717805221850,0.94081649,3682.3,3682.1,1.39285466]
[1717805222967,0.10379278,3682.2,3682.1,1.39285466]
[1717805223168,0.94081649,3682.3,3682.1,1.39285466]
[1717805223471,0.10379278,3682.2,3682.1,1.39285466]
[1717805223965,0.21581649,3682.3,3682.1,1.39285466]
[1717805224335,0.10368932,3682.2,3682.1,1.39285466]
[1717805224671,0.21581649,3682.3,3682.1,1.39285466]
[1717805225234,0.10368932,3682.2,3682.1,1.39285466]
[1717805225472,0.21581649,3682.3,3682.1,1.39285466]
[1717805225968,0.10368932,3682.2,3682.1,1.39285466]
[1717805226276,0.21581649,3682.3,3682.1,1.39285466]
[1717805226628,0.10368932,3682.2,3682.1,1.39285466]
[1717805226833,0.21581649,3682.3,3682.1,1.39285466]
[1717805227082,0.10368932,3682.2,3682.1,1.39285466]
[1717805227467,0.21581649,3682.3,3682.1,1.39285466]
[1717805227878,0.10368932,3682.2,3682.1,1.39285466]
[1717805228376,0.21581649,3682.3,3682.1,1.39285466]
[1717805228581,0.10368932,3682.2,3682.1,1.39285466]
[1717805229169,0.21581649,3682.3,3682.1,1.39285466]
[1717805229479,0.10368932,3682.2,3682.1,1.39285466]
[1717805229895,0.94081649,3682.3,3682.1,1.39285466]
[1717805230385,0.10368932,3682.2,3682.1,1.39285466]
[1717805230744,0.94081649,3682.3,3682.1,1.39285466]
[1717805230951,0.10368932,3682.2,3682.1,1.39285466]
[1717805231254,0.94081649,3682.3,3682.1,1.39285466]
[1717805231763,0.10368932,3682.2,3682.1,1.39285466]
[1717805232150,0.94081649,3682.3,3682.1,1.39285466]
[1717805232461,0.10368932,3682.2,3682.1,1.39285466]
[1717805232865,0.94081649,3682.3,3682.1,1.39285466]
[1717805233186,0.10368932,3682.2,3682.1,1.39285466]
[1717805233357,0.94081649,3682.3,3682.1,1.39285466]
[1717805233562,0.10368932,3682.2,3682.1,1.39285466]
[1717805233792,0.94081649,3682.3,3682.1,1.39285466]
[1717805234155,0.10374105,3682.2,3682.1,1.39285466]
[1717805234495,0.94081649,3682.3,3682.1,1.39285466]
[1717805235164,0.10334438,3682.2,3682.1,1.39285466]
[1717805235651,0.94081649,3682.3,3682.1,1.39285466]
[1717805235993,0.10329007,3682.2,3682.1,1.39285466]
[1717805236197,0.94081649,3682.3,3682.1,1.39285466]
[1717805236350,0.10329007,3682.2,3682.1,1.39285466]
[1717805236558,0.94081649,3682.3,3682.1,1.39285466]
[1717805236896,0.10088838,3682.2,3682.1,1.39285466]
[1717805237396,0.94081649,3682.3,3682.1,1.39285466]
[1717805237684,0.10066504,3682.2,3682.1,1.39285466]
[1717805238000,0.94081649,3682.3,3682.1,1.39285466]
[1717805238294,0.10066504,3682.2,3682.1,1.39285466]
[1717805238795,0.21581649,3682.3,3682.1,1.39285466]
[1717805238980,0.10066504,3682.2,3682.1,1.39285466]
[1717805239359,0.21581649,3682.3,3682.1,1.39285466]
[1717805239558,0.10011431,3682.2,3682.1,1.39285466]
[1717805239892,0.21581649,3682.3,3682.1,1.39285466]
[1717805240394,0.82511431,3682.2,3682.0,2.71586]
[1717805240599,3.3689142,3682.2,3681.6,2.71619]
[1717805240802,0.725,3681.7,3681.2,2.71649]
[1717805241007,2.4759,3682.0,3681.3,1.39285466]
[1717805241008,0.725,3681.4,3681.3,1.39285466]
[1717805241507,0.725,3681.4,3681.2,2.71649]
[1717805242574,0.725,3681.6,3681.2,2.71649]
[1717805242974,0.09727093,3681.5,3681.2,2.71649]
[1717805244639,0.09727093,3681.5,3681.3,1.39285466]
[1717805244785,0.725,3681.9,3681.3,1.39285466]
[1717805245112,0.09731489,3681.8,3681.3,1.39285466]
[1717805246102,0.09731489,3681.8,3681.4,2.71634]
[1717805246103,0.82231489,3681.8,3681.4,2.71634]
[1717805246310,0.82231489,3681.8,3681.5,1.39285466]
[1717805250316,0.09731489,3681.8,3681.5,1.39285466]
[1717805250627,3.2009,3682.0,3681.6,2.71621]
[1717805250920,0.09665783,3681.9,3681.6,2.71621]
[1717805253886,0.09665783,3681.9,3681.3,2.3547]
[1717805253887,0.09665783,3681.9,3681.8,2.71606]
[1717805260312,0.19094284,3681.9,3681.8,2.71606]
[1717805266952,0.19094284,3681.9,3681.8,6.40741466]
[1717805267133,0.19094284,3681.9,3681.8,6.95741466]
[1717805267449,0.09665783,3681.9,3681.8,6.95741466]
[1717805275758,0.09665783,3681.9,3681.8,4.65891466]
[1717805279885,0.09665783,3681.9,3681.8,7.09541466]
[1717805285360,0.09665783,3681.9,3681.8,2.71606]
[1717805285694,0.09665783,3681.9,3681.0,7.43]
[1717805285695,3.36004956,3681.9,3681.4,2.71632]
[1717805285851,0.725,3681.7,3681.5,1.39285466]
[1717805286187,0.08814863,3681.6,3681.5,1.39285466]
[1717805286848,0.08814863,3681.6,3680.7,0.725]
[1717805286849,2.4503,3681.5,3680.2,7.43]
[1717805287117,0.725,3680.9,3680.6,1.39285466]
[1717805287623,0.08779676,3680.8,3680.6,1.39285466]
[1717805287913,0.08779676,3680.8,3680.7,2.71687]
[1717805288077,0.08779676,3680.8,3680.7,4.10972466]
[1717805288392,0.725,3681.1,3680.7,4.10972466]
[1717805295800,2.4503,3681.5,3680.7,4.10972466]
[1717805296002,0.725,3681.1,3680.7,4.10972466]
[1717805317391,1.31218267,3681.1,3680.7,4.10972466]
[1717805317753,0.725,3681.1,3680.7,4.10972466]
[1717805318361,1.31218267,3681.1,3680.7,4.10972466]
[1717805318716,0.725,3681.1,3680.7,4.10972466]
[1717805319370,1.31218267,3681.1,3680.7,4.10972466]
[1717805319583,0.725,3681.1,3680.7,4.10972466]
[1717805319973,0.7929236,3681.1,3680.7,4.10972466]
[1717805320272,1.38010627,3681.1,3680.7,4.10972466]
[1717805320466,0.7929236,3681.1,3680.7,4.10972466]
[1717805320673,0.725,3681.1,3680.7,4.10972466]
[1717805320878,0.79292361,3681.1,3680.7,4.10972466]
[1717805321200,1.38010628,3681.1,3680.7,4.10972466]
[1717805321508,0.79292361,3681.1,3680.7,4.10972466]
[1717805321699,0.725,3681.1,3680.7,4.10972466]
[1717805321903,0.79292362,3681.1,3680.7,4.10972466]
[1717805322088,1.38010629,3681.1,3680.7,4.10972466]
[1717805322403,0.79292362,3681.1,3680.7,4.10972466]
[1717805322602,0.06792371,3681.0,3680.7,2.71687]
[1717805323299,0.08239998,3680.9,3680.7,2.71687]
[1717805324708,0.725,3681.1,3680.7,2.71687]
[1717805324862,0.08239998,3681.0,3680.7,2.71687]
[1717805327906,0.58718267,3681.1,3680.7,2.71687]
[1717805328209,0.08242584,3681.0,3680.7,2.71687]
[1717805331372,1.31218267,3681.2,3680.7,2.71687]
[1717805331693,0.725,3681.2,3680.7,2.71687]
[1717805331896,0.08242844,3681.1,3680.7,2.71687]
[1717805339223,0.725,3681.2,3680.7,2.71687]
[1717805339921,1.31218267,3681.2,3680.7,2.71687]
[1717805340291,0.725,3681.2,3680.7,2.71687]
[1717805344131,0.58718267,3681.1,3680.7,2.71687]
[1717805347028,0.725,3681.2,3680.7,2.71687]
[1717805347394,1.31218267,3681.2,3680.7,2.71687]
[1717805347730,0.725,3681.2,3680.7,2.71687]
[1717805348133,1.31218267,3681.2,3680.7,2.71687]
[1717805348428,0.725,3681.2,3680.7,2.71687]
[1717805348626,0.58718267,3681.1,3680.7,2.71687]
[1717805349303,0.725,3681.2,3680.7,2.71687]
[1717805349703,1.31218267,3681.2,3680.7,2.71687]
[1717805349919,0.725,3681.2,3680.7,2.71687]
[1717805350095,0.58718267,3681.3,3681.0,2.71663]
[1717805350294,0.58718267,3681.2,3681.0,2.71663]
[1717805350529,0.93419158,3681.5,3681.0,2.71663]
[1717805350686,0.725,3681.3,3681.0,2.71663]
[1717805350892,1.31218267,3681.3,3681.0,2.71663]
[1717805351090,0.08246208,3681.2,3681.0,2.71663]
[1717805351331,1.31218267,3681.3,3681.0,2.71663]
[1717805351499,0.725,3681.3,3681.0,2.71663]
[1717805351703,0.08246208,3681.2,3681.0,2.71663]
[1717805351895,0.725,3681.3,3681.0,2.71663]
[1717805352097,0.08246208,3681.2,3681.0,2.71663]
[1717805352325,0.725,3681.3,3681.0,2.71663]
[1717805352629,0.08246208,3681.2,3681.0,2.71663]
[1717805352806,0.725,3681.3,3681.0,2.71663]
[1717805353010,0.08246208,3681.1,3681.0,2.71663]
[1717805353196,0.725,3681.3,3681.0,2.71663]
[1717805353522,0.58718267,3681.3,3681.2,2.7165]
[1717805353735,0.58718267,3681.3,3681.2,6.39315466]
[1717805353736,0.08254489,3681.3,3681.2,6.39315466]
[1717805353939,0.20919158,3681.5,3681.2,6.39315466]
[1717805354139,0.20919158,3681.5,3681.4,2.71635]
[1717805354448,0.20919158,3681.5,3681.4,6.39300466]
[1717805355407,0.20919158,3681.5,3681.4,7.66800466]
[1717805356661,0.20919158,3681.5,3681.4,6.94300466]
[1717805356812,0.20919158,3681.5,3681.4,7.66800466]
[1717805357145,0.20919158,3681.5,3681.4,6.94300466]
[1717805357314,0.20919158,3681.5,3681.4,7.66800466]
[1717805359451,0.58718267,3683.9,3681.8,4.99986]
[1717805359647,0.725,3682.8,3681.8,6.39271466]
[1717805362558,0.58718267,3683.1,3681.8,6.94271466]
[1717805362559,0.725,3683.0,3681.8,6.94271466]
[1717805364375,0.725,3682.8,3681.8,6.94271466]
[1717805364577,0.725,3682.6,3681.8,6.94271466]
[1717805364899,3.2155,3682.6,3681.8,6.94271466]
[1717805365192,0.17975636,3681.9,3681.8,6.94271466]
[1717805370279,0.17975636,3681.9,3681.8,4.65891466]
[1717805372205,0.17975636,3681.9,3681.8,2.71606]
[1717805373309,0.17975636,3681.9,3681.8,4.10891466]
[1717805373912,0.17975636,3681.9,3681.8,6.96661466]
[1717805378252,0.17975636,3681.9,3681.8,7.69161466]
[1717805378623,0.09665783,3681.9,3681.8,7.69161466]
[1717805395263,0.09665783,3681.9,3681.8,6.96661466]
[1717805395468,0.09665783,3681.9,3681.8,5.38391466]
[1717805397709,0.09665783,3681.9,3681.8,4.83391466]
[1717805397882,0.09665783,3681.9,3681.8,4.10891466]
[1717805403410,0.09665783,3681.9,3681.8,2.71606]
[1717805403630,2.47265783,3681.9,3681.8,2.71606]
[1717805403924,2.54487616,3681.9,3681.8,2.71606]
[1717805404073,2.54487616,3681.9,3681.4,2.71631]
[1717805404074,3.58964194,3681.9,3681.4,2.71631]
[1717805404278,3.101,3681.8,3681.5,1.39285466]
[1717805404475,3.45996419,3681.8,3681.5,1.39285466]
[1717805404682,0.725,3681.6,3681.4,2.71631]
[1717805404882,2.376,3681.5,3681.2,7.43]
[1717805405113,2.376,3681.3,3681.2,7.43]
[1717805405426,2.6861,3681.3,3681.2,7.43]
[1717805405779,2.75818121,3681.3,3681.2,7.43]
[1717805406617,2.6861,3681.3,3681.2,7.43]
[1717805406780,2.44790271,3681.3,3681.2,7.43]
[1717805406984,2.376,3681.3,3681.2,7.43]
[1717805407514,2.376,3681.3,3680.9,2.71667]
[1717805407736,2.376,3681.3,3680.9,4.10952466]
[1717805408018,0.07190271,3681.2,3680.9,4.10952466]
[1717805408328,2.376,3681.3,3680.9,4.10952466]
[1717805408490,0.07194411,3681.1,3680.9,4.10952466]
[1717805408676,2.376,3681.3,3680.9,4.10952466]
[1717805409081,0.07194411,3681.2,3680.9,4.10952466]
[1717805409279,2.376,3681.3,3680.9,4.10952466]
[1717805409776,0.07194411,3681.2,3680.9,4.10952466]
[1717805410050,2.376,3681.3,3680.9,4.10952466]
[1717805410376,0.07194411,3681.2,3680.9,4.10952466]
[1717805410572,2.376,3681.3,3680.9,4.10952466]
[1717805410814,0.07194411,3681.2,3680.9,4.10952466]
[1717805411036,2.376,3681.3,3680.9,4.10952466]
[1717805411174,0.07194411,3681.1,3680.9,4.10952466]
[1717805411530,2.376,3681.3,3680.9,4.10952466]
[1717805412016,0.07194411,3681.2,3680.9,4.10952466]
[1717805412318,2.376,3681.3,3680.9,4.10952466]
[1717805412679,0.07116078,3681.2,3681.1,2.71657]
[1717805412876,2.51485057,3681.7,3681.1,4.10942466]
[1717805413095,2.94311782,3681.7,3681.2,1.39285466]
[1717805413928,0.725,3681.6,3681.2,1.39285466]
[1717805415985,2.2748,3681.4,3680.7,2.71685]
[1717805416216,2.2748,3681.4,3680.8,1.39285466]
[1717805416217,2.9998,3681.4,3680.8,1.39285466]
[1717805417401,2.2748,3681.4,3680.8,1.39285466]
[1717805420928,2.51485057,3681.7,3680.9,2.71671]
[1717805421109,3.23985057,3681.7,3681.0,1.39285466]
[1717805422335,2.51485057,3681.7,3681.0,1.39285466]
[1717805422559,3.23985057,3681.7,3681.0,1.39285466]
[1717805425439,0.06767666,3681.6,3681.0,1.39285466]
[1717805428533,0.06767666,3681.6,3681.1,2.71655]
[1717805428700,0.79267666,3681.6,3681.2,1.39285466]
[1717805429436,0.06767666,3681.6,3681.2,1.39285466]
[1717805429634,0.79267666,3681.6,3681.2,1.39285466]
[1717805431657,0.84719808,3681.6,3681.2,1.39285466]
[1717805432458,0.12219808,3681.6,3681.2,1.39285466]
[1717805432668,0.84719808,3681.6,3681.2,1.39285466]
[1717805434019,0.12219808,3681.6,3681.2,1.39285466]
[1717805434220,0.84719808,3681.6,3681.2,1.39285466]
[1717805434437,1.43455124,3681.6,3681.2,1.39285466]
[1717805437265,0.70955124,3681.6,3681.2,1.39285466]
[1717805437571,0.725,3681.5,3681.2,1.39285466]
[1717805437965,0.12083455,3681.4,3681.2,1.39285466]
[1717805439750,1.31235316,3681.6,3681.2,1.39285466]
[1717805439932,0.11978119,3681.3,3681.2,1.39285466]
[1717805440145,1.31235316,3681.6,3681.2,1.39285466]
[1717805440348,0.11978119,3681.3,3681.2,1.39285466]
[1717805440677,0.11803785,3681.3,3681.2,1.39285466]
[1717805440846,1.31235316,3681.6,3681.2,1.39285466]
[1717805441047,0.11803785,3681.3,3681.2,1.39285466]
[1717805441257,1.31235316,3681.6,3681.2,1.39285466]
[1717805441457,0.11803785,3681.3,3681.2,1.39285466]
[1717805441768,1.31235316,3681.6,3681.2,1.39285466]
[1717805441969,0.11803785,3681.3,3681.2,1.39285466]
[1717805442168,1.31235316,3681.6,3681.2,1.39285466]
[1717805442355,0.11804819,3681.3,3681.2,1.39285466]
[1717805442555,1.31235316,3681.6,3681.2,1.39285466]
[1717805442779,0.11804819,3681.3,3681.2,1.39285466]
[1717805443086,0.11804302,3681.3,3681.2,1.39285466]
[1717805443245,1.31235316,3681.6,3681.2,1.39285466]
[1717805443576,0.11804302,3681.3,3681.2,1.39285466]
[1717805443784,1.31235316,3681.6,3681.2,1.39285466]
[1717805443979,0.11804302,3681.3,3681.2,1.39285466]
[1717805444199,1.31235316,3681.6,3681.2,1.39285466]
[1717805444346,0.11804302,3681.3,3681.2,1.39285466]
[1717805444858,1.31235316,3681.6,3681.2,1.39285466]
[1717805445186,0.11804302,3681.3,3681.2,1.39285466]
[1717805445342,0.58735316,3681.6,3681.2,1.39285466]
[1717805445542,0.11804302,3681.3,3681.2,1.39285466]
[1717805445801,1.31235316,3681.6,3681.2,1.39285466]
[1717805446586,0.11804302,3681.5,3681.2,1.39285466]
[1717805454595,2.37064302,3681.5,3681.2,1.39285466]
[1717805454887,0.725,3681.4,3681.2,1.39285466]
[1717805455396,0.11804302,3681.3,3681.2,1.39285466]
[1717805465005,0.32899342,3681.3,3680.4,9.8089]
[1717805465166,0.32899342,3681.3,3680.5,1.39285466]
[1717805465167,0.725,3680.7,3680.5,1.39285466]
[1717805465891,0.725,3680.9,3680.5,1.39285466]
[1717805466060,0.11736755,3680.6,3680.5,1.39285466]
[1717805466260,2.2526,3681.2,3680.5,1.39285466]
[1717805466494,0.11738305,3680.6,3680.5,1.39285466]
[1717805466688,2.2526,3681.2,3680.5,1.39285466]
[1717805466996,0.11738305,3680.6,3680.5,1.39285466]
[1717805467228,0.725,3680.9,3680.5,1.39285466]
[1717805467510,0.11738305,3680.8,3680.5,1.39285466]
[1717805468592,0.725,3680.9,3680.5,1.39285466]
[1717805468792,0.11725628,3680.7,3680.5,1.39285466]
[1717805469005,0.725,3680.9,3680.5,1.39285466]
[1717805469327,0.11725628,3680.8,3680.5,1.39285466]
[1717805470587,0.725,3680.7,3680.3,2.71712]
[1717805470914,0.11727438,3680.6,3680.3,2.71712]
[1717805471828,0.725,3680.4,3680.0,12.38]
[1717805472138,0.725,3680.2,3679.9,2.71746]
[1717805472826,0.11721745,3680.1,3679.9,2.71746]
[1717805472991,0.725,3680.2,3679.9,2.71746]
[1717805473390,0.11721745,3680.1,3679.9,2.71746]
[1717805473826,0.725,3680.2,3679.9,2.71746]
[1717805474233,0.11712945,3680.1,3679.9,2.71746]
[1717805474435,0.725,3680.2,3679.9,2.71746]
[1717805474600,2.442,3680.5,3679.9,2.71746]
[1717805474804,0.725,3680.1,3679.9,2.71746]
[1717805475002,0.11712945,3680.0,3679.9,2.71746]
[1717805479243,0.11712945,3680.0,3679.5,2.71775]
[1717805479407,0.725,3679.9,3679.6,1.39285466]
[1717805479803,0.11686549,3679.8,3679.6,1.39285466]
[1717805480009,0.11686549,3679.8,3679.5,2.71775]
[1717805480207,0.11686549,3679.8,3679.5,4.11060466]
[1717805484822,0.11686549,3679.8,3678.7,0.42567535]
[1717805484823,0.11686549,3679.8,3679.7,5.09471]
[1717805485034,0.725,3680.5,3679.7,6.48756466]
[1717805485281,0.11671531,3680.4,3679.8,1.39285466]
[1717805485858,0.725,3680.3,3679.8,1.39285466]
[1717805486280,0.11671531,3680.2,3679.9,2.71742]
[1717805486587,0.725,3680.3,3679.9,2.71742]
[1717805486781,0.11671531,3680.1,3679.9,2.71742]
[1717805486988,0.725,3680.3,3679.9,2.71742]
[1717805487183,0.11671531,3680.0,3679.9,2.71742]
[1717805487376,0.725,3680.3,3679.9,2.71742]
[1717805487581,0.11671531,3680.0,3679.9,2.71742]
[1717805487748,0.725,3680.3,3679.9,2.71742]
[1717805487948,0.11671531,3680.0,3679.9,2.71742]
[1717805488163,0.725,3680.3,3679.9,2.71742]
[1717805488389,0.11671531,3680.0,3679.9,2.71742]
[1717805488588,0.58735316,3680.9,3679.9,2.71742]
[1717805488589,0.58735316,3680.9,3679.9,4.49495466]
[1717805488884,2.442,3681.4,3680.5,2.3771]
[1717805489085,3.43520506,3681.4,3680.5,3.76995466]
[1717805489650,2.71020506,3681.4,3680.5,3.76995466]
[1717805489888,0.725,3681.3,3680.5,3.76995466]
[1717805490383,0.725,3681.3,3680.6,2.71691]
[1717805490582,1.06852051,3681.3,3680.6,2.71691]
[1717805491849,0.725,3681.1,3680.6,2.71691]
[1717805493487,0.34352051,3681.3,3680.6,2.71691]
[1717805493694,0.725,3681.1,3680.6,2.71691]
[1717805493908,0.34352051,3681.3,3680.6,2.71691]
[1717805494216,0.8274481,3681.7,3680.8,2.71678]
[1717805494417,0.24005057,3681.7,3681.0,2.71664]
[1717805494586,0.725,3681.5,3681.0,4.10949466]
[1717805499143,0.30796387,3681.7,3681.0,4.10949466]
[1717805499144,0.725,3681.3,3681.0,4.10949466]
[1717805500422,0.10914139,3681.2,3681.0,4.10949466]
[1717805500806,0.725,3681.3,3681.0,4.10949466]
[1717805501240,0.10914139,3681.2,3681.0,4.10949466]
[1717805501622,0.725,3681.3,3681.0,4.10949466]
[1717805501836,0.24005057,3681.7,3681.0,4.10949466]
[1717805502017,0.10914139,3681.2,3681.0,4.10949466]
[1717805502346,0.725,3681.4,3681.0,4.10949466]
[1717805502545,0.10914139,3681.1,3681.0,4.10949466]
[1717805502843,0.725,3681.4,3681.0,4.10949466]
[1717805503346,0.10914139,3681.3,3681.0,4.10949466]
[1717805503504,0.10914139,3681.3,3680.5,2.3771]
[1717805503706,0.725,3681.1,3680.6,4.10976466]
[1717805503955,0.10916726,3681.2,3680.6,4.10976466]
[1717805504108,0.725,3681.4,3680.6,4.10976466]
[1717805504312,0.10913619,3681.1,3680.6,4.10976466]
[1717805504658,0.725,3681.4,3680.6,4.10976466]
[1717805505151,0.10913619,3681.3,3680.6,4.10976466]
[1717805505717,0.725,3681.2,3680.6,4.10976466]
[1717805505934,0.83415949,3681.2,3680.6,4.10976466]
[1717805515491,0.725,3681.0,3680.3,7.43]
[1717805515694,0.725,3680.7,3680.3,7.43]
[1717805515994,0.725,3680.7,3680.2,2.7172]
[1717805516288,0.10841783,3680.6,3680.2,2.7172]
[1717805516786,0.725,3680.7,3680.2,2.7172]
[1717805517086,0.10841783,3680.5,3680.2,2.7172]
[1717805517249,0.725,3680.7,3680.2,2.7172]
[1717805517446,0.725,3680.7,3679.3,7.43]
[1717805517650,0.725,3680.1,3679.4,1.39285466]
[1717805518379,0.10841783,3680.0,3679.4,1.39285466]
[1717805518679,0.10841783,3680.0,3679.7,2.71759]
[1717805520383,3.00467092,3680.6,3679.7,2.71759]
[1717805520557,3.00467092,3680.6,3679.9,2.71741]
[1717805520558,0.10841783,3680.5,3679.9,2.71741]
[1717805520746,0.10841783,3680.5,3680.0,1.39285466]
[1717805521148,0.725,3680.5,3680.0,1.39285466]
[1717805521350,0.10819263,3680.4,3680.0,1.39285466]
[1717805523744,0.10819263,3680.4,3679.9,2.71741]
[1717805523896,0.10819263,3680.4,3679.9,4.11026466]
[1717805524094,0.725,3680.3,3679.9,4.11026466]
[1717805524735,2.74923781,3680.9,3679.9,4.11026466]
[1717805524934,0.725,3680.3,3679.9,4.11026466]
[1717805525603,0.10819263,3680.2,3679.9,4.11026466]
[1717805526139,0.725,3680.3,3679.9,4.11026466]
[1717805526436,0.10819263,3680.2,3679.9,4.11026466]
[1717805526851,0.725,3680.3,3679.9,4.11026466]
[1717805527217,0.10819263,3680.2,3679.9,4.11026466]
[1717805527622,0.725,3680.3,3679.9,4.11026466]
[1717805528118,0.10819263,3680.2,3679.9,4.11026466]
[1717805528434,0.725,3680.3,3679.9,4.11026466]
[1717805528807,0.10819263,3680.2,3679.9,4.11026466]
[1717805529003,0.725,3680.3,3679.9,4.11026466]
[1717805529315,0.10819263,3680.2,3679.9,4.11026466]
[1717805529702,0.725,3680.3,3679.9,4.11026466]
[1717805530148,0.10819263,3680.2,3679.9,4.11026466]
[1717805530651,0.725,3680.3,3679.9,4.11026466]
[1717805531251,0.10819263,3680.2,3679.9,4.11026466]
[1717805531643,0.725,3680.3,3679.9,4.11026466]
[1717805532039,0.10819263,3680.2,3679.9,4.11026466]
[1717805532448,0.725,3680.3,3679.9,4.11026466]
[1717805532920,0.10819263,3680.2,3679.9,4.11026466]
[1717805533313,0.725,3680.5,3679.9,4.11026466]
[1717805533828,0.10713596,3680.4,3679.9,4.11026466]
[1717805535425,0.725,3680.5,3679.9,4.11026466]
[1717805535612,0.10713596,3680.4,3679.9,4.11026466]
[1717805535812,0.2243544,3680.4,3679.9,4.11026466]
[1717805536143,0.10722656,3680.3,3679.9,4.11026466]
[1717805545069,0.10722656,3680.3,3680.1,2.71731]
[1717805545242,0.10722656,3680.3,3680.2,2.4172]
[1717805545656,0.2243544,3680.4,3680.3,2.71716]
[1717805546491,0.2243544,3680.4,3680.3,4.11001466]
[1717805546769,0.2243544,3680.4,3680.3,6.52721466]
[1717805552941,0.2243544,3680.4,3680.3,7.07721466]
[1717805555767,0.2243544,3680.4,3680.3,4.11001466]
[1717805556279,0.33176733,3680.4,3680.3,4.11001466]
[1717805562194,0.33076059,3680.4,3680.3,4.11001466]
[1717805563093,0.2243544,3680.4,3680.3,4.11001466]
[1717805563269,0.2243544,3680.4,3680.3,4.66001466]
[1717805575116,2.3115,3681.3,3680.7,2.71683]
[1717805575451,0.10641137,3681.2,3680.7,4.10968466]
[1717805576815,0.725,3681.2,3680.7,4.10968466]
[1717805577119,0.106401,3681.1,3680.7,4.10968466]
[1717805578862,0.106401,3681.1,3680.8,1.39285466]
[1717805579220,0.725,3681.2,3680.8,1.39285466]
[1717805579621,2.3115,3681.3,3680.9,2.71671]
[1717805579822,0.10644501,3681.2,3680.9,4.10956466]
[1717805580052,3.0365,3681.3,3680.9,4.10956466]
[1717805580267,0.10643464,3681.2,3680.9,4.10956466]
[1717805580746,0.725,3681.1,3680.9,2.71671]
[1717805580951,0.83143464,3681.1,3680.9,2.71671]
[1717805581444,0.725,3681.1,3680.9,2.71671]
[1717805583876,0.10642687,3681.0,3680.9,2.71671]
[1717805584656,0.725,3681.1,3680.9,2.71671]
[1717805585056,0.10641134,3681.0,3680.9,2.71671]
[1717805585972,0.725,3681.1,3680.9,2.71671]
[1717805586751,0.10641134,3681.0,3680.9,2.71671]
[1717805587546,0.725,3681.1,3680.9,2.71671]
[1717805587947,0.1063984,3681.0,3680.9,2.71671]
[1717805589077,0.725,3681.1,3680.9,2.71671]
[1717805589448,0.10639324,3681.0,3680.9,2.71671]
[1717805590352,0.725,3681.1,3680.9,2.71671]
[1717805590767,0.10639324,3681.0,3680.9,2.71671]
[1717805591485,0.725,3681.2,3680.9,2.71671]
[1717805591999,0.10639324,3681.1,3680.9,2.71671]
[1717805593173,0.725,3681.2,3680.9,2.71671]
[1717805593469,0.10639324,3681.1,3680.9,2.71671]
[1717805594571,0.725,3681.2,3680.9,2.71671]
[1717805595091,0.10638547,3681.1,3680.9,2.71671]
[1717805595498,0.10638547,3681.1,3681.0,1.39285466]
[1717805596108,0.725,3681.5,3681.1,2.71656]
[1717805596109,1.31240404,3681.5,3681.1,2.71656]
[1717805596267,0.725,3681.5,3681.1,4.10941466]
[1717805596468,1.31240404,3681.5,3681.1,4.10941466]
[1717805596700,2.2647,3681.6,3681.1,4.10941466]
[1717805596982,2.9897,3681.6,3681.1,4.10941466]
[1717805597194,2.2647,3681.6,3681.1,4.10941466]
[1717805597568,2.9897,3681.6,3681.1,4.10941466]
[1717805598726,0.725,3681.6,3681.1,4.10941466]
[1717805600632,2.2647,3681.8,3681.1,4.10941466]
[1717805600932,0.725,3681.6,3681.2,1.39285466]
[1717805602738,0.725,3681.4,3681.2,1.39285466]
[1717805604533,0.5568054,3681.7,3681.2,1.39285466]
[1717805604735,0.725,3681.3,3681.2,1.39285466]
[1717805605233,0.83132028,3681.3,3681.2,1.39285466]
[1717805607421,0.10632028,3681.3,3681.2,1.39285466]
[1717805607625,0.725,3681.4,3681.2,1.39285466]
[1717805607930,0.10629958,3681.3,3681.2,1.39285466]
[1717805608311,0.725,3681.4,3681.2,1.39285466]
[1717805608510,0.10629958,3681.3,3681.2,1.39285466]
[1717805609318,0.10629958,3681.3,3681.1,2.71656]
[1717805614648,0.725,3681.5,3681.1,2.71656]
[1717805614942,0.10629958,3681.4,3681.1,2.71656]
[1717805615149,0.10629958,3681.4,3681.2,1.39285466]
[1717805615505,0.725,3681.5,3681.2,1.39285466]
[1717805615706,0.10629958,3681.3,3681.2,1.39285466]
[1717805615943,0.725,3681.5,3681.2,1.39285466]
[1717805616166,0.10629958,3681.3,3681.2,1.39285466]
[1717805616305,0.725,3681.5,3681.2,1.39285466]
[1717805616948,0.10629958,3681.4,3681.2,1.39285466]
[1717805623941,0.83129958,3681.4,3681.2,1.39285466]
[1717805624285,0.10275617,3681.3,3681.2,1.39285466]
[1717805630605,0.10275617,3681.3,3680.7,2.71682]
[1717805630776,0.725,3681.2,3680.8,1.39285466]
[1717805632212,0.10274841,3681.1,3680.8,1.39285466]
[1717805636618,0.82774841,3681.1,3680.8,1.39285466]
[1717805636911,0.09929919,3681.0,3680.8,1.39285466]
[1717805646204,3.0032,3681.2,3680.8,1.39285466]
[1717805646407,0.09931729,3680.9,3680.8,1.39285466]
[1717805646615,3.0032,3681.2,3680.8,1.39285466]
[1717805646820,0.09931729,3680.9,3680.8,1.39285466]
[1717805647027,3.0032,3681.2,3680.8,1.39285466]
[1717805647498,0.09931729,3681.1,3680.8,1.39285466]
[1717805651899,0.725,3681.0,3680.3,10.14713]
[1717805652154,0.8242966,3680.9,3680.3,11.53998466]
[1717805652338,0.725,3680.7,3680.3,11.53998466]
[1717805652662,0.9425563,3680.7,3680.3,11.53998466]